fUSD/lending_fUSD_20250505
["ID","MTS","AMOUNT","RATE_DAILY","PERIOD"]
[359958203,1746447064128,-2962.13,0.00019999,2]
[359958204,1746447064138,-2010.48,0.00019999,2]
[359958205,1746447064147,-2962.13,0.00019999,2]
[359958206,1746447064157,-2010.48,0.00019999,2]
[359958207,1746447064167,-2962.13,0.00019999,2]
[359958208,1746447064177,-2010.48,0.00019999,2]
[359958209,1746447064186,-2962.13,0.00019999,2]
[359958210,1746447064196,-2010.48,0.00019999,2]
[359958211,1746447064205,-450.0,0.00019999,2]
[359958212,1746447064215,-2962.13,0.00019999,2]
[359958213,1746447064225,-2010.48,0.00019999,2]
[359958214,1746447064235,-2010.48,0.00019999,2]
[359958215,1746447064245,-2962.13,0.00019999,2]
[359958216,1746447064255,-2962.13,0.00019999,2]
[359958217,1746447064264,-2010.48,0.00019999,2]
[359958218,1746447064273,-2962.13,0.00019999,2]
[359958219,1746447064283,-2962.13,0.00019999,2]
[359958220,1746447064293,-2962.13,0.00019999,2]
[359958221,1746447064303,-2962.13,0.00019999,2]
[359958222,1746447064313,-2962.13,0.00019999,2]
[359958223,1746447064323,-2962.13,0.00019999,2]
[359958224,1746447064332,-2010.48,0.00019999,2]
[359958225,1746447064342,-2010.54070987,0.00019999,2]
[359958226,1746447064352,-2962.3203,0.00019999,2]
[359958227,1746447064361,-444.26561911,0.00019999,2]
[359958228,1746447064371,-450.0,0.00019999,2]
[359958229,1746447064381,-450.0,0.00019999,2]
[359958230,1746447064390,-450.0,0.00019999,2]
[359958231,1746447064400,-517.28,0.00019999,2]
[359958232,1746447064410,-1106.82,0.00019999,2]
[359958233,1746447064419,-1106.82,0.00019999,2]
[359958234,1746447064428,-1106.82,0.00019999,2]
[359958235,1746447064438,-1106.82,0.00019999,2]
[359958236,1746447064448,-1106.82,0.00019999,2]
[359958237,1746447064457,-1106.82,0.00019999,2]
[359958238,1746447064467,-1106.82,0.00019999,2]
[359958239,1746447064476,-1106.82,0.00019999,2]
[359958240,1746447064486,-1106.82,0.00019999,2]
[359958241,1746447064496,-1106.82,0.00019999,2]
[359958242,1746447064506,-1106.82,0.00019999,2]
[359958243,1746447064516,-1106.82,0.00019999,2]
[359958244,1746447064526,-1106.82,0.00019999,2]
[359958245,1746447064535,-1106.82,0.00019999,2]
[359958246,1746447064545,-1106.82,0.00019999,2]
[359958247,1746447064555,-1106.82,0.00019999,2]
[359958248,1746447064565,-1106.82,0.00019999,2]
[359958249,1746447064575,-1106.82,0.00019999,2]
[359958250,1746447064585,-1106.82,0.00019999,2]
[359958251,1746447064595,-1106.82,0.00019999,2]
[359958252,1746447064605,-1106.91,0.00019999,2]
[359958253,1746447064615,-500.0,0.00019999,2]
[359958254,1746447064624,-500.0,0.00019999,2]
[359958255,1746447064633,-623.4385797,0.00019999,2]
[359958256,1746447064643,-450.0,0.00019999,2]
[359958257,1746447064652,-450.0,0.00019999,2]
[359958258,1746447064661,-450.0,0.00019999,2]
[359958259,1746447064671,-450.0,0.00019999,2]
[359958260,1746447064680,-450.0,0.00019999,2]
[359958261,1746447064690,-450.0,0.00019999,2]
[359958262,1746447064700,-450.0,0.00019999,2]
[359958263,1746447064709,-450.0,0.00019999,2]
[359958264,1746447064718,-450.0,0.00019999,2]
[359958265,1746447064728,-450.0,0.00019999,2]
[359958266,1746447064738,-450.0,0.00019999,2]
[359958267,1746447064751,-450.0,0.00019999,2]
[359958268,1746447064760,-450.0,0.00019999,2]
[359958269,1746447064770,-522.35000001,0.00019999,2]
[359958270,1746447064780,-175.14219764,0.00019999,2]
[359958271,1746447064791,-492.14316457,0.00019999,2]
[359958272,1746447064800,-450.0,0.00019999,2]
[359958273,1746447064810,-450.0,0.00019999,2]
[359958274,1746447064820,-450.0,0.00019999,2]
[359958275,1746447064830,-450.0,0.00019999,2]
[359958276,1746447064840,-450.0,0.00019999,2]
[359958277,1746447064850,-214.5389024,0.00019999,2]
[359958278,1746447064859,-450.0,0.00019999,2]
[359958279,1746447064869,-450.0,0.00019999,2]
[359958280,1746447064879,-450.0,0.00019999,2]
[359958281,1746447064889,-450.0,0.00019999,2]
[359958282,1746447064898,-450.0,0.00019999,2]
[359958283,1746447064908,-450.0,0.00019999,2]
[359958284,1746447064918,-479.43,0.00019999,2]
[359958285,1746447064928,-450.0,0.00019999,2]
[359958286,1746447064938,-450.0,0.00019999,2]
[359958287,1746447064947,-450.0,0.00019999,2]
[359958288,1746447064957,-450.0,0.00019999,2]
[359958289,1746447064966,-450.0,0.00019999,2]
[359958290,1746447064976,-454.46,0.00019999,2]
[359958291,1746447064985,-450.0,0.00019999,2]
[359958292,1746447064994,-450.0,0.00019999,2]
[359958293,1746447065096,-450.0,0.00019999,2]
[359958294,1746447065107,-450.0,0.00019999,2]
[359958295,1746447065116,-295.22,0.00019999,2]
[359958296,1746447065126,-513.85267279,0.00019999,2]
[359958297,1746447065135,-450.0,0.00019999,2]
[359958298,1746447065145,-450.0,0.00019999,2]
[359958299,1746447065154,-450.0,0.00019999,2]
[359958300,1746447065163,-450.0,0.00019999,2]
[359958301,1746447065173,-450.0,0.00019999,2]
[359958302,1746447065183,-344.85981753,0.00019999,2]
[359958303,1746447065192,-450.0,0.00019999,2]
[359958304,1746447065202,-450.0,0.00019999,2]
[359958305,1746447065211,-450.0,0.00019999,2]
[359958306,1746447065220,-450.0,0.00019999,2]
[359958307,1746447065230,-450.0,0.00019999,2]
[359958308,1746447065239,-450.0,0.00019999,2]
[359958309,1746447065248,-499.4,0.00019999,2]
[359958310,1746447065257,-450.0,0.00019999,2]
[359958311,1746447065266,-450.0,0.00019999,2]
[359958312,1746447065275,-450.0,0.00019999,2]
[359958313,1746447065285,-450.0,0.00019999,2]
[359958314,1746447065294,-322.53,0.00019999,2]
[359958315,1746447065303,-678.53,0.00019999,2]
[359958316,1746447065312,-678.53,0.00019999,2]
[359958317,1746447065322,-678.53,0.00019999,2]
[359958318,1746447065331,-678.53,0.00019999,2]
[359958319,1746447065340,-678.53,0.00019999,2]
[359958320,1746447065350,-678.53,0.00019999,2]
[359958321,1746447065359,-678.53,0.00019999,2]
[359958322,1746447065368,-678.53,0.00019999,2]
[359958323,1746447065377,-678.53,0.00019999,2]
[359958324,1746447065386,-678.53,0.00019999,2]
[359958325,1746447065396,-678.53,0.00019999,2]
[359958326,1746447065405,-678.53,0.00019999,2]
[359958327,1746447065415,-678.53,0.00019999,2]
[359958328,1746447065424,-678.53,0.00019999,2]
[359958329,1746447065433,-678.53,0.00019999,2]
[359958330,1746447065443,-678.53,0.00019999,2]
[359958331,1746447065453,-678.53,0.00019999,2]
[359958332,1746447065463,-678.53,0.00019999,2]
[359958333,1746447065472,-678.53,0.00019999,2]
[359958334,1746447065481,-678.53,0.00019999,2]
[359958335,1746447065491,-678.72,0.00019999,2]
[359958336,1746447065500,-450.0,0.00019999,2]
[359958337,1746447065510,-450.0,0.00019999,2]
[359958338,1746447065519,-450.0,0.00019999,2]
[359958339,1746447065528,-450.0,0.00019999,2]
[359958340,1746447065538,-450.0,0.00019999,2]
[359958341,1746447065547,-450.0,0.00019999,2]
[359958342,1746447065557,-450.0,0.00019999,2]
[359958343,1746447065566,-450.0,0.00019999,2]
[359958344,1746447065575,-597.74,0.00019999,2]
[359958345,1746447065586,-440.0,0.00019999,2]
[359958346,1746447065595,-450.0,0.00019999,2]
[359958347,1746447065604,-450.0,0.00019999,2]
[359958348,1746447065614,-450.0,0.00019999,2]
[359958349,1746447065623,-450.0,0.00019999,2]
[359958350,1746447065633,-450.0,0.00019999,2]
[359958351,1746447065642,-450.0,0.00019999,2]
[359958352,1746447065651,-169.36,0.00019999,2]
[359958353,1746447065661,-450.0,0.00019999,2]
[359958354,1746447065670,-450.0,0.00019999,2]
[359958355,1746447065680,-450.0,0.00019999,2]
[359958356,1746447065690,-450.0,0.00019999,2]
[359958357,1746447065699,-160.09,0.00019999,2]
[359958358,1746447065709,-450.0,0.00019999,2]
[359958359,1746447065719,-450.0,0.00019999,2]
[359958360,1746447065728,-450.0,0.00019999,2]
[359958361,1746447065738,-450.0,0.00019999,2]
[359958362,1746447065751,-450.0,0.00019999,2]
[359958363,1746447065761,-450.0,0.00019999,2]
[359958364,1746447065771,-450.0,0.00019999,2]
[359958365,1746447065780,-450.0,0.00019999,2]
[359958366,1746447065790,-341.78,0.00019999,2]
[359958367,1746447065799,-450.0,0.00019999,2]
[359958368,1746447065809,-450.0,0.00019999,2]
[359958369,1746447065819,-450.0,0.00019999,2]
[359958370,1746447065829,-555.9,0.00019999,2]
[359958371,1746447065839,-450.0,0.00019999,2]
[359958372,1746447065848,-450.0,0.00019999,2]
[359958373,1746447065858,-450.0,0.00019999,2]
[359958374,1746447065867,-450.0,0.00019999,2]
[359958375,1746447065876,-450.0,0.00019999,2]
[359958376,1746447065886,-450.0,0.00019999,2]
[359958377,1746447065895,-450.0,0.00019999,2]
[359958378,1746447065904,-450.0,0.00019999,2]
[359958379,1746447065914,-450.0,0.00019999,2]
[359958380,1746447065923,-450.0,0.00019999,2]
[359958381,1746447065932,-450.0,0.00019999,2]
[359958382,1746447065942,-450.0,0.00019999,2]
[359958383,1746447065951,-450.0,0.00019999,2]
[359958384,1746447065960,-450.0,0.00019999,2]
[359958385,1746447065970,-450.0,0.00019999,2]
[359958386,1746447065980,-450.0,0.00019999,2]
[359958387,1746447065989,-450.0,0.00019999,2]
[359958388,1746447065998,-450.0,0.00019999,2]
[359958389,1746447066008,-450.0,0.00019999,2]
[359958390,1746447066017,-450.0,0.00019999,2]
[359958391,1746447066026,-450.0,0.00019999,2]
[359958392,1746447066035,-385.43564381,0.00019999,2]
[359958393,1746447066045,-450.0,0.00019999,2]
[359958394,1746447066054,-450.0,0.00019999,2]
[359958395,1746447066064,-450.0,0.00019999,2]
[359958396,1746447066074,-450.0,0.00019999,2]
[359958397,1746447066083,-450.0,0.00019999,2]
[359958398,1746447066093,-576.35,0.00019999,2]
[359958399,1746447066103,-450.0,0.00019999,2]
[359958400,1746447066112,-450.0,0.00019999,2]
[359958401,1746447066122,-278.05,0.00019999,2]
[359958402,1746447066131,-500.0,0.00019999,2]
[359958403,1746447066141,-450.0,0.00019999,2]
[359958404,1746447066150,-450.0,0.00019999,2]
[359958405,1746447066159,-450.0,0.00019999,2]
[359958406,1746447066169,-450.0,0.00019999,2]
[359958407,1746447066179,-450.0,0.00019999,2]
[359958408,1746447066188,-450.0,0.00019999,2]
[359958409,1746447066197,-450.0,0.00019999,2]
[359958410,1746447066207,-450.0,0.00019999,2]
[359958411,1746447066216,-450.0,0.00019999,2]
[359958412,1746447066226,-450.0,0.00019999,2]
[359958413,1746447066236,-450.0,0.00019999,2]
[359958414,1746447066246,-450.0,0.00019999,2]
[359958415,1746447066256,-450.0,0.00019999,2]
[359958416,1746447066265,-450.0,0.00019999,2]
[359958417,1746447066275,-450.0,0.00019999,2]
[359958418,1746447066284,-450.0,0.00019999,2]
[359958419,1746447066294,-200.61343551,0.00019999,2]
[359958420,1746447066303,-450.0,0.00019999,2]
[359958421,1746447066313,-450.0,0.00019999,2]
[359958422,1746447066323,-450.0,0.00019999,2]
[359958423,1746447066333,-450.0,0.00019999,2]
[359958424,1746447066342,-450.0,0.00019999,2]
[359958425,1746447066352,-450.0,0.00019999,2]
[359958426,1746447066361,-450.0,0.00019999,2]
[359958427,1746447066371,-450.0,0.00019999,2]
[359958428,1746447066380,-450.0,0.00019999,2]
[359958429,1746447066393,-450.0,0.00019999,2]
[359958430,1746447066402,-450.0,0.00019999,2]
[359958431,1746447066412,-450.0,0.00019999,2]
[359958432,1746447066421,-450.0,0.00019999,2]
[359958433,1746447066432,-450.0,0.00019999,2]
[359958434,1746447066442,-450.0,0.00019999,2]
[359958435,1746447066452,-450.0,0.00019999,2]
[359958436,1746447066462,-450.0,0.00019999,2]
[359958437,1746447066471,-428.4162135,0.00019999,2]
[359958438,1746447066481,-450.0,0.00019999,2]
[359958439,1746447066490,-450.0,0.00019999,2]
[359958440,1746447066500,-450.0,0.00019999,2]
[359958441,1746447066509,-450.0,0.00019999,2]
[359958442,1746447066519,-450.0,0.00019999,2]
[359958443,1746447066528,-450.0,0.00019999,2]
[359958444,1746447066538,-389.32,0.00019999,2]
[359958445,1746447066548,-450.0,0.00019999,2]
[359958446,1746447066646,-450.0,0.00019999,2]
[359958447,1746447066656,-264.6690812,0.00019999,2]
[359958448,1746447066667,-450.0,0.00019999,2]
[359958449,1746447066677,-450.0,0.00019999,2]
[359958450,1746447066687,-450.0,0.00019999,2]
[359958451,1746447066697,-1380.4,0.00019999,2]
[359958452,1746447066707,-450.0,0.00019999,2]
[359958453,1746447066716,-1380.4,0.00019999,2]
[359958454,1746447066726,-450.0,0.00019999,2]
[359958455,1746447066735,-1380.4,0.00019999,2]
[359958456,1746447066747,-1380.4,0.00019999,2]
[359958457,1746447066756,-450.0,0.00019999,2]
[359958458,1746447066766,-1380.4,0.00019999,2]
[359958459,1746447066776,-450.0,0.00019999,2]
[359958460,1746447066787,-1380.4,0.00019999,2]
[359958461,1746447066796,-188.76844906,0.00019999,2]
[359958462,1746447066806,-1380.4,0.00019999,2]
[359958463,1746447066815,-1380.4,0.00019999,2]
[359958464,1746447066825,-1380.4,0.00019999,2]
[359958465,1746447066835,-1380.4,0.00019999,2]
[359958466,1746447066844,-1380.4,0.00019999,2]
[359958467,1746447066854,-1380.4,0.00019999,2]
[359958468,1746447066864,-1380.4,0.00019999,2]
[359958469,1746447066874,-1380.4,0.00019999,2]
[359958470,1746447066883,-1380.4,0.00019999,2]
[359958471,1746447066892,-1380.6,0.00019999,2]
[359958472,1746447066902,-996.82,0.00019999,2]
[359958473,1746447066911,-102.41982175,0.00019999,2]
[359958474,1746447066934,-151.0,0.00019836,2]
[359958475,1746447066944,-894.40017825,0.00019999,2]
[359958476,1746447066954,-533.49640816,0.00019999,2]
[359958477,1746447067059,-333.13466616,0.00019836,2]
[359958478,1746447067070,-463.32359184,0.00019999,2]
[359958479,1746447067079,-238.80948042,0.00019999,2]
[359958480,1746447067090,-758.01051958,0.00019999,2]
[359958481,1746447067099,-996.82,0.00019999,2]
[359958482,1746447067109,-165.06948042,0.00019999,2]
[359958483,1746447067121,-405.64652684,0.00019999,2]
[359958484,1746447067133,-426.10399274,0.00019999,2]
[359958485,1746447067142,-996.82,0.00019999,2]
[359958486,1746447067151,-996.82,0.00019999,2]
[359958487,1746447067161,-996.82,0.00019999,2]
[359958488,1746447067170,-996.82,0.00019999,2]
[359958489,1746447067179,-306.61600726,0.00019999,2]
[359958490,1746447140767,160.0,0.0003,32]
[359958491,1746447196941,507.93,0.00017068,2]
[359958492,1746447197143,507.93,0.00019332,2]
[359958493,1746447201763,502.12443193,0.000301,120]
[359958494,1746447440317,160.0,0.0003,32]
[359958497,1746447519643,161.57,0.00013699,2]
[359958498,1746447520098,161.57,0.00013699,2]
[359958499,1746447520656,14.09712364,0.00013699,2]
[359958500,1746447520678,147.47287636,0.00013699,2]
[359958501,1746447521204,161.57,0.00013699,2]
[359958502,1746447521672,161.57,0.00013699,2]
[359958503,1746447522088,161.57,0.00013699,2]
[359958504,1746447522634,161.57,0.00013699,2]
[359958505,1746447523205,161.57,0.00013699,2]
[359958506,1746447523678,161.57,0.00013699,2]
[359958507,1746447524243,161.57,0.00013699,2]
[359958508,1746447524703,161.57,0.00013699,2]
[359958509,1746447525140,161.62044362,0.00013699,2]
[359958511,1746447625271,1000.0,0.00018907,2]
[359958512,1746447705880,250.0,0.00017,2]
[359958513,1746447706981,163.022522,0.00019,2]
[359958514,1746447707007,136.977478,0.00019,2]
[359958515,1746447745658,160.0,0.0003,32]
[359958516,1746447790040,7011.36920202,0.00019,4]
[359958517,1746447790060,10000.0,0.00019,4]
[359958518,1746447790079,10000.0,0.00019,4]
[359958519,1746447790099,10000.0,0.00019,4]
[359958520,1746447790118,10000.0,0.00019,4]
[359958521,1746447790139,10000.0,0.00019,4]
[359958522,1746447790158,10000.0,0.00019,4]
[359958523,1746447790178,10000.0,0.00019,4]
[359958524,1746447790198,10000.0,0.00019,4]
[359958525,1746447790218,10000.0,0.00019,4]
[359958526,1746447790238,10000.0,0.00019,4]
[359958527,1746447790258,10000.0,0.00019,4]
[359958528,1746447790279,10000.0,0.00019,4]
[359958529,1746447790299,10000.0,0.00019,4]
[359958530,1746447790320,10000.0,0.00019,4]
[359958531,1746447790341,10000.0,0.00019,4]
[359958532,1746447790361,10000.0,0.00019,4]
[359958533,1746447790382,10000.0,0.00019,4]
[359958534,1746447790402,10000.0,0.00019,4]
[359958535,1746447790424,10000.0,0.00019,4]
[359958536,1746447790443,10000.0,0.00019,4]
[359958537,1746447790464,10000.0,0.00019,4]
[359958538,1746447790484,10000.0,0.00019,4]
[359958539,1746447790504,10000.0,0.00019,4]
[359958540,1746447790525,10000.0,0.00019,4]
[359958541,1746447790548,10000.0,0.00019,4]
[359958542,1746447790568,10000.0,0.00019,4]
[359958543,1746447790588,10000.0,0.00019,4]
[359958544,1746447790608,10000.0,0.00019,4]
[359958545,1746447790629,4988.63079798,0.00019,4]
[359958549,1746447917119,150.0,0.00017975,2]
[359958551,1746447954041,4000.0,0.00018911,2]
[359958556,1746448040182,160.0,0.0003,32]
[359958560,1746448106422,525.25533279,0.000298,30]
[359958581,1746448164494,861.36920202,0.00018924,2]
[359958582,1746448164518,320.13079798,0.00018924,2]
[359958587,1746448169455,250.0,0.00018925,2]
[359958597,1746448232255,-966.208501,0.00019636,2]
[359958598,1746448232265,-1200.0,0.00019735,2]
[359958599,1746448232275,-151.0,0.00019736,2]
[359958600,1746448232284,-300.0,0.00019736,2]
[359958601,1746448232293,-300.0,0.00019736,2]
[359958602,1746448232302,-200.0,0.00019736,2]
[359958603,1746448232311,-6512.308091,0.00019737,2]
[359958604,1746448232422,-4254.487709,0.00019737,2]
[359958605,1746448232432,-151.6773449,0.00019799,2]
[359958606,1746448232441,-223.94303537,0.000198,23]
[359958607,1746448232451,-207.4,0.00019824,2]
[359958608,1746448232460,-450.0,0.00019834,2]
[359958609,1746448232470,-500.5078654,0.00019834,2]
[359958610,1746448232479,-450.0,0.00019834,2]
[359958611,1746448232488,-450.0,0.00019834,2]
[359958612,1746448232498,-678.13,0.00019834,2]
[359958613,1746448232507,-450.0,0.00019837,2]
[359958614,1746448232517,-450.0,0.00019837,2]
[359958615,1746448232526,-450.0,0.00019837,2]
[359958616,1746448232535,-678.13,0.00019837,2]
[359958617,1746448232545,-465.68,0.00019838,2]
[359958618,1746448232554,-678.13,0.00019838,2]
[359958619,1746448232564,-1666.666666,0.00019853,2]
[359958620,1746448232574,-4166.666667,0.00019853,2]
[359958621,1746448232583,-313.18941228,0.00019873,2]
[359958622,1746448232594,-668.65185757,0.00019873,2]
[359958623,1746448232603,-151.0,0.00019873,2]
[359958624,1746448232612,-22835.6483,0.00019885,2]
[359958625,1746448232622,-2387.1521,0.00019886,2]
[359958626,1746448232631,-1666.666666,0.00019887,2]
[359958627,1746448232640,-4166.666667,0.00019887,2]
[359958629,1746448232650,-169.75396531,0.00019892,2]
[359958631,1746448232659,-500.0,0.00019892,2]
[359958633,1746448232669,-500.0,0.00019892,2]
[359958635,1746448232677,-500.0,0.00019892,2]
[359958637,1746448232686,-500.0,0.00019892,2]
[359958639,1746448232695,-500.0,0.00019892,2]
[359958641,1746448232705,-500.0,0.00019892,2]
[359958643,1746448232715,-500.0,0.00019892,2]
[359958645,1746448232724,-500.0,0.00019892,2]
[359958646,1746448232733,-76.72981469,0.00019892,2]
[359958647,1746448232745,-423.27018531,0.00019892,2]
[359958648,1746448232754,-500.0,0.00019892,2]
[359958649,1746448232763,-500.0,0.00019892,2]
[359958650,1746448232772,-175.71657682,0.00019892,2]
[359958651,1746448232786,-267.59430731,0.00019892,2]
[359958700,1746448238264,-56.68911587,0.00019892,2]
[359958701,1746448238275,-304.57629326,0.00019892,2]
[359958702,1746448238289,-195.42370674,0.00019892,2]
[359958703,1746448238299,-156.17629326,0.00019892,2]
[359958704,1746448238322,-343.82370674,0.00019892,2]
[359958705,1746448238332,-500.0,0.00019892,2]
[359958706,1746448238343,-500.0,0.00019892,2]
[359958707,1746448238354,-500.0,0.00019892,2]
[359958708,1746448238365,-500.0,0.00019892,2]
[359958709,1746448238375,-500.0,0.00019892,2]
[359958710,1746448238386,-500.0,0.00019892,2]
[359958711,1746448238398,-500.0,0.00019892,2]
[359958712,1746448238408,-500.0,0.00019892,2]
[359958713,1746448238419,-387.60514716,0.00019892,2]
[359958714,1746448238442,-112.39485284,0.00019892,2]
[359958715,1746448238452,-500.0,0.00019892,2]
[359958716,1746448238463,-226.8471306,0.00019892,2]
[359958717,1746448238474,-500.0,0.00019892,2]
[359958718,1746448238484,-500.0,0.00019892,2]
[359958719,1746448238495,-500.0,0.00019892,2]
[359958720,1746448238505,-500.0,0.00019892,2]
[359958721,1746448238515,-322.68471307,0.00019892,2]
[359958722,1746448238527,-500.0,0.00019892,2]
[359958723,1746448238537,-500.0,0.00019892,2]
[359958724,1746448238549,-500.0,0.00019892,2]
[359958725,1746448238560,-349.51233705,0.00019892,2]
[359958726,1746448238578,-150.48766295,0.00019892,2]
[359958727,1746448238589,-499.99999999,0.00019892,2]
[359958728,1746448238600,-185.81760942,0.00019895,2]
[359958731,1746448238611,-170.44596509,0.00019899,2]
[359958733,1746448238622,-1053.99317047,0.00019899,2]
[359958735,1746448238632,-1053.99317043,0.00019899,2]
[359958737,1746448238643,-1053.99317043,0.00019899,2]
[359958739,1746448238654,-170.44596509,0.00019899,2]
[359958741,1746448238665,-385.09636295,0.00019899,2]
[359958744,1746448238683,-668.89680748,0.00019899,2]
[359958746,1746448238694,-886.51276038,0.00019899,2]
[359958941,1746448240609,-167.48041005,0.00019899,2]
[359958943,1746448240619,-170.44596509,0.000199,2]
[359958945,1746448240628,-1053.99317043,0.000199,2]
[359958947,1746448240638,-1053.99317043,0.000199,2]
[359958949,1746448240647,-170.44596509,0.000199,2]
[359958951,1746448240657,-1053.99317043,0.000199,2]
[359958953,1746448240666,-1053.99317043,0.000199,2]
[359958955,1746448240675,-236.03245057,0.000199,2]
[359958957,1746448240684,-170.44596509,0.000199,2]
[359958959,1746448240694,-852.09315267,0.000199,2]
[359958961,1746448240703,-376.60997136,0.000199,2]
[359958963,1746448240712,-1053.99317043,0.000199,2]
[359958965,1746448240721,-10217.54943682,0.00019956,2]
[359958967,1746448240731,-501.31477291,0.00019973,2]
[359958969,1746448240740,-500.0,0.00019973,2]
[359958971,1746448240749,-500.0,0.00019973,2]
[359958973,1746448240758,-500.0,0.00019973,2]
[359958975,1746448240767,-500.0,0.00019973,2]
[359958977,1746448240777,-151.41569293,0.00019973,2]
[359958979,1746448240786,-500.0,0.00019973,2]
[359958981,1746448240796,-500.0,0.00019973,2]
[359958983,1746448240805,-500.0,0.00019973,2]
[359958985,1746448240815,-500.0,0.00019973,2]
[359958987,1746448240825,-540.22155995,0.00019983,2]
[359958989,1746448240834,-450.0,0.00019983,2]
[359958991,1746448240843,-450.0,0.00019983,2]
[359958993,1746448240853,-450.0,0.00019983,2]
[359958995,1746448240863,-450.0,0.00019983,2]
[359958997,1746448240872,-450.0,0.00019983,2]
[359958999,1746448240881,-450.0,0.00019983,2]
[359959001,1746448240890,-450.0,0.00019983,2]
[359959003,1746448240900,-450.0,0.00019983,2]
[359959005,1746448240909,-485.93,0.00019983,2]
[359959007,1746448240918,-450.0,0.00019983,2]
[359959009,1746448240928,-450.0,0.00019983,2]
[359959011,1746448240939,-450.0,0.00019983,2]
[359959013,1746448240948,-450.0,0.00019983,2]
[359959015,1746448240957,-450.0,0.00019983,2]
[359959017,1746448240967,-312.77170674,0.00019983,2]
[359959019,1746448240977,-450.0,0.00019983,2]
[359959021,1746448240986,-525.33872342,0.00019983,2]
[359959023,1746448240995,-450.0,0.00019983,2]
[359959025,1746448241004,-450.0,0.00019983,2]
[359959026,1746448241013,-450.0,0.00019983,2]
[359959028,1746448241022,-450.0,0.00019983,2]
[359959030,1746448241032,-496.21231751,0.00019983,2]
[359959032,1746448241042,-450.0,0.00019983,2]
[359959034,1746448241051,-261.22131898,0.00019983,2]
[359959036,1746448241061,-450.0,0.00019983,2]
[359959038,1746448241071,-966.43,0.00019983,2]
[359959040,1746448241081,-470.0,0.00019983,2]
[359959042,1746448241090,-450.0,0.00019983,2]
[359959044,1746448241100,-450.0,0.00019983,2]
[359959046,1746448241109,-450.0,0.00019983,2]
[359959048,1746448241118,-484.81039393,0.00019983,2]
[359959050,1746448241127,-450.0,0.00019983,2]
[359959052,1746448241137,-450.0,0.00019983,2]
[359959055,1746448241147,-450.0,0.00019983,2]
[359959056,1746448241155,-468.98,0.00019983,2]
[359959058,1746448241166,-1663.92,0.00019983,2]
[359959060,1746448241175,-518.95,0.00019983,2]
[359959062,1746448241188,-509.22,0.00019983,2]
[359959065,1746448241198,-30700.81,0.00019983,2]
[359959067,1746448241207,-450.0,0.00019983,2]
[359959068,1746448241216,-678.13,0.00019984,2]
[359959071,1746448241228,-678.13,0.00019985,2]
[359959073,1746448241238,-450.0,0.00019985,2]
[359959074,1746448241247,-450.0,0.00019985,2]
[359959076,1746448241256,-20927.38,0.00019985,2]
[359959078,1746448241266,-450.0,0.00019985,2]